fUST/lending_fUST_20251004
["ID","MTS","AMOUNT","RATE_DAILY","PERIOD"]
[389127887,1759582565459,-500.0,0.00019726,2]
[389127888,1759582565490,-636.72,0.00019726,2]
[389127889,1759582565521,-752.51,0.00019726,2]
[389127890,1759582565551,-500.0,0.00019726,2]
[389127891,1759582565580,-500.0,0.00019726,2]
[389127892,1759582565608,-362.59,0.00019726,2]
[389127893,1759582565780,-137.41,0.00019726,2]
[389127894,1759582565811,-580.96,0.00019726,2]
[389127895,1759582565845,-1717.63,0.00019726,2]
[389127896,1759582565877,-500.0,0.00019726,2]
[389127897,1759582565908,-599.86,0.00019726,2]
[389127898,1759582565936,-619.63,0.00019726,2]
[389127899,1759582565969,-500.0,0.00019726,2]
[389127900,1759582565999,-189.03,0.00019726,2]
[389127901,1759582566249,-310.97,0.00019726,2]
[389127902,1759582566283,-2068.78,0.00019726,2]
[389127903,1759582566315,-1216.94,0.00019726,2]
[389127904,1759582566349,-504.01,0.00019726,2]
[389127905,1759582566382,-617.08,0.00019726,2]
[389127906,1759582566413,-64.45,0.00019726,2]
[389127907,1759582571466,-500.0,0.00019178,2]
[389127908,1759582571502,-500.0,0.00019178,2]
[389127909,1759582571539,-500.0,0.00019178,2]
[389127910,1759582571574,-500.0,0.00019452,2]
[389127911,1759582571610,-435.55,0.00019726,2]
[389127912,1759582571644,-500.0,0.00019726,2]
[389127913,1759582571677,-500.0,0.00019726,2]
[389127914,1759582571711,-500.0,0.00019726,2]
[389127915,1759582571743,-500.0,0.00019726,2]
[389127916,1759582571775,-500.0,0.00019726,2]
[389127917,1759582571975,-919.89,0.00019726,2]
[389127918,1759582572011,-500.0,0.00019726,2]
[389127919,1759582572049,-168.0,0.00019879,2]
[389127920,1759582572085,-500.0,0.00019879,2]
[389127921,1759582572122,-503.31,0.0001999,3]
[389127922,1759582572159,-500.0,0.00019999,2]
[389127923,1759582572193,-500.0,0.00019999,2]
[389127924,1759582572228,-480.0,0.00019999,2]
[389127925,1759582572259,-500.0,0.00019999,2]
[389127926,1759582572295,-357.61,0.00019999,2]
[389127927,1759582572460,-500.0,0.00019178,2]
[389127928,1759582572495,-142.39,0.00019999,2]
[389127929,1759582572527,-500.0,0.00019999,2]
[389127930,1759582572561,-184.16430104,0.00019999,2]
[389127931,1759582572595,-500.0,0.00019999,2]
[389127932,1759582572951,-159.10703725,0.00019999,2]
[389127933,1759582572990,-563.94516478,0.00019999,2]
[389127934,1759582573022,-290.09271263,0.00019999,2]
[389127935,1759582573054,-500.0,0.00019999,2]
[389127936,1759582573087,-500.0,0.00019999,2]
[389127937,1759582573122,-500.0,0.00019999,2]
[389127938,1759582573156,-500.0,0.00019999,2]
[389127939,1759582573263,-492.73130562,0.00019999,2]
[389127940,1759582573296,-319.37132275,0.00019999,2]
[389127941,1759582573329,-500.0,0.00019999,2]
[389127942,1759582573361,-436.05483522,0.00019999,2]
[389127943,1759582573392,-500.0,0.0002,2]
[389127944,1759582573421,-500.0,0.0002,2]
[389127945,1759582573453,-500.0,0.0002,2]
[389127946,1759582573483,-500.0,0.0002,2]
[389127947,1759582573515,-500.0,0.0002,2]
[389127948,1759582573546,-500.0,0.0002,2]
[389127949,1759582573577,-3.69507282,0.0002,2]
[389127950,1759582573718,-500.0,0.00019452,2]
[389127951,1759582573752,-496.30492718,0.0002,2]
[389127952,1759582573784,-500.0,0.0002,2]
[389127953,1759582573817,-500.0,0.0002,2]
[389127954,1759582573850,-500.0,0.0002,2]
[389127955,1759582573883,-500.0,0.0002,2]
[389127956,1759582573916,-500.0,0.0002,2]
[389127957,1759582573948,-500.0,0.0002,2]
[389127958,1759582573984,-500.0,0.0002,2]
[389127959,1759582574220,-500.0,0.00019726,2]
[389127960,1759582574251,-1631.73,0.0002,2]
[389127961,1759582574282,-1233.42,0.0002,2]
[389127962,1759582574312,-500.0,0.0002,2]
[389127963,1759582574342,-500.0,0.0002,2]
[389127964,1759582574375,-500.0,0.0002,2]
[389127965,1759582585711,-1746.86,0.00019178,2]
[389127966,1759582585742,-500.0,0.00019178,2]
[389127967,1759582585775,-500.0,0.00019178,2]
[389127968,1759582585806,-963.1,0.00019178,2]
[389127969,1759582585834,-500.0,0.00019178,2]
[389127970,1759582586053,-2617.44,0.00019178,2]
[389127971,1759582586083,-500.0,0.00019178,2]
[389127972,1759582586114,-1746.86,0.00019452,2]
[389127973,1759582586224,-607.48158416,0.00019452,2]
[389127974,1759582586257,-500.0,0.00019452,2]
[389127975,1759582586287,-963.1,0.00019452,2]
[389127976,1759582586320,-500.0,0.00019452,2]
[389127977,1759582586351,-2241.40683168,0.00019452,2]
[389127978,1759582586491,-376.03316832,0.00019452,2]
[389127979,1759582586522,-500.0,0.00019452,2]
[389127980,1759582586552,-500.0,0.00019725,2]
[389127981,1759582586584,-500.0,0.00019725,2]
[389127982,1759582586613,-1746.86,0.00019726,2]
[389127983,1759582586641,-500.0,0.00019726,2]
[389127984,1759582586671,-791.12366336,0.00019726,2]
[389127985,1759582586791,-171.97633664,0.00019726,2]
[389127986,1759582586822,-500.0,0.00019726,2]
[389127987,1759582586856,-2617.44,0.00019726,2]
[389127988,1759582586887,-500.0,0.00019726,2]
[389127989,1759582587680,-2001.03029803,0.0001999,2]
[389127990,1759582587704,-10000.01,0.0001999,2]
[389127991,1759582595777,-576.80880087,0.00019178,2]
[389127992,1759582595813,-1661.06,0.00019178,2]
[389127993,1759582595846,-500.0,0.00019178,2]
[389127994,1759582595877,-500.0,0.00019178,2]
[389127995,1759582595908,-500.0,0.00019178,2]
[389127996,1759582595939,-526.04,0.00019178,2]
[389127997,1759582595971,-500.0,0.00019178,2]
[389127998,1759582596015,-1661.06,0.00019452,2]
[389127999,1759582596048,-500.0,0.00019452,2]
[389128000,1759582596084,-500.0,0.00019452,2]
[389128001,1759582596114,-500.0,0.00019452,2]
[389128002,1759582596144,-526.04,0.00019452,2]
[389128003,1759582596180,-964.75,0.00019726,2]
[389128004,1759582596265,-500.0,0.00019452,2]
[389128005,1759582596296,-696.31,0.00019726,2]
[389128006,1759582596325,-500.0,0.00019726,2]
[389128007,1759582596415,-500.0,0.00019726,2]
[389128008,1759582596447,-500.0,0.00019726,2]
[389128009,1759582596477,-526.04,0.00019726,2]
[389128010,1759582596850,-500.0,0.00019726,2]
[389128011,1759582596956,-196.31,0.0001999,2]
[389128012,1759582596984,-526.04,0.0001999,2]
[389128013,1759582597001,-3555.31,0.0001999,2]
[389128014,1759582597041,-10000.01,0.0001999,2]
[389128015,1759582597078,-500.0,0.00019178,2]
[389128016,1759582597088,-9500.01,0.0001999,2]
[389128017,1759582597105,-500.0,0.0001999,2]
[389128018,1759582597122,-9000.01,0.0001999,2]
[389128019,1759582625999,-300.0,0.00019177,2]
[389128020,1759582626035,-500.0,0.00019178,2]
[389128021,1759582626070,-500.0,0.00019178,2]
[389128022,1759582626104,-500.0,0.00019178,2]
[389128023,1759582626138,-500.0,0.00019178,2]
[389128024,1759582626170,-637.57,0.00019178,2]
[389128025,1759582626202,-773.16,0.00019178,2]
[389128026,1759582626238,-500.0,0.00019178,2]
[389128027,1759582626483,-500.0,0.00019178,2]
[389128028,1759582626666,-833.8,0.00019178,2]
[389128029,1759582626697,-500.0,0.00019178,2]
[389128030,1759582626730,-500.0,0.00019178,2]
[389128031,1759582626762,-1017.67,0.00019178,2]
[389128032,1759582626793,-500.0,0.00019178,2]
[389128033,1759582626825,-500.0,0.00019178,2]
[389128034,1759582626857,-500.0,0.00019178,2]
[389128035,1759582626887,-500.0,0.00019178,2]
[389128036,1759582627310,-78.55,0.00019178,2]
[389128037,1759582627332,-421.45,0.00019178,2]
[389128038,1759582627342,-78.55,0.00019452,2]
[389128039,1759582627359,-297.07,0.00019452,2]
[389128040,1759582628124,-362.93848032,0.00019178,2]
[389128041,1759582628157,-124.38,0.00019452,2]
[389128042,1759582628192,-500.0,0.00019452,2]
[389128043,1759582628223,-500.0,0.00019452,2]
[389128044,1759582628255,-637.57,0.00019452,2]
[389128045,1759582628286,-773.16,0.00019452,2]
[389128046,1759582628318,-500.0,0.00019452,2]
[389128047,1759582628349,-500.0,0.00019452,2]
[389128048,1759582628379,-833.8,0.00019452,2]
[389128049,1759582628408,-36.31303936,0.00019452,2]
[389128050,1759582628655,-463.68696064,0.00019452,2]
[389128051,1759582629927,-575.83,0.00019178,2]
[389128052,1759582629961,-500.0,0.00019178,2]
[389128053,1759582629995,-268.82257756,0.00019178,2]
[389128054,1759582630027,-500.0,0.00019452,2]
[389128055,1759582630060,-1017.67,0.00019452,2]
[389128056,1759582630092,-500.0,0.00019452,2]
[389128057,1759582630123,-347.29421795,0.00019452,2]
[389128058,1759582630156,-500.0,0.00019452,2]
[389128059,1759582630189,-500.0,0.00019452,2]
[389128060,1759582630255,-4.94640898,0.00019452,2]
[389128061,1759582630442,-570.88359102,0.00019452,2]
[389128062,1759582630473,-500.0,0.00019452,2]
[389128063,1759582630581,-70.88359102,0.00019626,2]
[389128064,1759582630606,-500.0,0.00019626,2]
[389128065,1759582630624,-7858.24281796,0.00019626,2]
[389128066,1759582632319,-10000.01,0.00019626,2]
[389128067,1759582632547,-10000.01,0.00019626,2]
[389128068,1759582632649,-10000.01,0.00019626,2]
[389128069,1759582632802,-10000.01,0.00019626,2]
[389128070,1759582640008,-571.47,0.00019178,2]
[389128071,1759582640045,-1715.94,0.00019178,2]
[389128072,1759582640078,-883.17,0.00019178,2]
[389128073,1759582640142,-3658.85,0.00019178,2]
[389128074,1759582654956,218.803577,0.00016438,2]
[389128075,1759582656297,-1417.12132888,0.00018986,2]
[389128076,1759582656330,-1011.11,0.00019178,2]
[389128077,1759582656367,-1471.57,0.00019178,2]
[389128078,1759582656400,-701.28,0.00019178,2]
[389128079,1759582656434,-237.46734224,0.00019178,2]
[389128080,1759582656549,-322.91265776,0.00019178,2]
[389128081,1759582658091,-500.0,0.00019178,2]
[389128082,1759582658127,-500.0,0.00019178,2]
[389128083,1759582658160,-500.0,0.00019178,2]
[389128084,1759582658192,-500.0,0.00019178,2]
[389128085,1759582658225,-571.47,0.00019452,2]
[389128086,1759582658259,-1715.94,0.00019452,2]
[389128087,1759582658387,-1425.19,0.00019452,2]
[389128088,1759582660142,-3116.83,0.00019452,2]
[389128089,1759582660175,-1011.11,0.00019452,2]
[389128090,1759582660208,-272.56,0.00019452,2]
[389128091,1759582660271,-1199.01,0.00019452,2]
[389128092,1759582662142,-1157.91,0.00019178,2]
[389128093,1759582662172,-500.0,0.00019178,2]
[389128094,1759582662202,-701.28,0.00019452,2]
[389128095,1759582662231,-560.38,0.00019452,2]
[389128096,1759582662261,-500.0,0.00019452,2]
[389128097,1759582662290,-500.0,0.00019452,2]
[389128098,1759582662320,-500.0,0.00019452,2]
[389128099,1759582662349,-500.0,0.00019452,2]
[389128100,1759582662496,-160.87,0.00019452,2]
[389128101,1759582664295,-641.81,0.00019178,2]
[389128102,1759582667538,572.71,0.00019178,2]
[389128103,1759582669059,2899.44,0.00019178,2]
[389128104,1759582669260,500.0,0.00019178,2]
[389128105,1759582669832,500.0,0.00019178,2]
[389128106,1759582670998,500.0,0.00019178,2]
[389128107,1759582673225,645.1,0.00019178,2]
[389128108,1759582673410,3099.14,0.00019178,2]
[389128109,1759582673438,531.7773275,0.00019178,2]
[389128110,1759582675041,600.0,0.00028767,120]
[389128111,1759582682387,561.58,0.00019178,2]
[389128112,1759582682605,179.03443659,0.00019078,2]
[389128113,1759582682988,620.59,0.00019178,2]
[389128114,1759582685065,1943.5,0.00019178,2]
[389128115,1759582685295,500.0,0.00019178,2]
[389128116,1759582686819,500.0,0.00019178,2]
[389128117,1759582687804,500.0,0.00019178,2]
[389128118,1759582689492,500.0,0.00019178,2]
[389128119,1759582693855,757.17,0.00019178,2]
[389128120,1759582694154,1510.99,0.00019178,2]
[389128121,1759582695030,500.0,0.00019178,2]
[389128122,1759582695341,500.0,0.00019178,2]
[389128123,1759582696595,-300.0,0.00019451,2]
[389128124,1759582696628,-997.04,0.00019452,2]
[389128125,1759582696660,-641.81,0.00019452,2]
[389128126,1759582696692,-572.71,0.00019452,2]
[389128127,1759582696724,-2077.45,0.00019452,2]
[389128128,1759582700514,-821.99,0.00019452,2]
[389128129,1759582700544,-500.0,0.00019452,2]
[389128130,1759582700573,-500.0,0.00019452,2]
[389128131,1759582700603,-645.1,0.00019452,2]
[389128132,1759582700635,-561.58,0.00019452,2]
[389128133,1759582700665,-620.59,0.00019452,2]
[389128134,1759582700695,-757.99,0.00019452,2]
[389128135,1759582702511,-831.93,0.00019178,2]
[389128136,1759582702545,-570.0,0.00019178,2]
[389128137,1759582702580,-500.0,0.00019178,2]
[389128138,1759582702612,-1185.51,0.00019452,2]
[389128139,1759582702644,-500.0,0.00019452,2]
[389128140,1759582702677,-500.0,0.00019452,2]
[389128141,1759582702709,-500.0,0.00019452,2]
[389128142,1759582702740,-325.13,0.00019452,2]
[389128143,1759582704500,-174.87,0.00019452,2]
[389128144,1759582704530,-757.17,0.00019452,2]
[389128145,1759582704560,-1510.99,0.00019452,2]
[389128146,1759582704590,-500.0,0.00019452,2]
[389128147,1759582704619,-500.0,0.00019452,2]
[389128148,1759582704650,-831.93,0.00019452,2]
[389128149,1759582704683,-570.0,0.00019452,2]
[389128150,1759582707372,310.09,0.00019178,2]
[389128151,1759582708693,-825.82,0.00019178,2]
[389128152,1759582710835,500.0,0.00019178,2]
[389128153,1759582711189,187.21648807,0.00019178,2]
[389128154,1759582713359,585.77604444,0.00019178,2]
[389128155,1759582715635,500.0,0.00019178,2]
[389128156,1759582715935,426.39322973,0.00025999,60]
[389128157,1759582719458,500.0,0.00019178,2]
[389128158,1759582720028,500.0,0.00019178,2]
[389128159,1759582720699,586.87,0.00019178,2]
[389128160,1759582723120,3734.15,0.00019178,2]
[389128161,1759582725028,500.0,0.00019178,2]
[389128162,1759582726348,500.0,0.00019178,2]
[389128163,1759582730510,254.35746749,0.00019178,2]
[389128164,1759582730535,245.64253251,0.00019178,2]
[389128165,1759582731360,500.0,0.00019178,2]
[389128166,1759582732077,500.0,0.00019178,2]
[389128167,1759582735571,2178.58,0.00019178,2]
[389128168,1759582738796,1232.17,0.00019178,2]
[389128169,1759582740423,5000.0,0.00019213,2]
[389128170,1759582740465,500.0,0.00019178,2]
[389128171,1759582743602,500.0,0.00019178,2]
[389128172,1759582746020,589.26,0.00019178,2]
[389128173,1759582746044,544.5,0.00019178,2]
[389128174,1759582746080,500.0,0.00019178,2]
[389128175,1759582746720,500.0,0.00019178,2]
[389128176,1759582747888,500.0,0.00019178,2]
[389128177,1759582749502,500.0,0.00019178,2]
[389128178,1759582749757,500.0,0.00019178,2]
[389128179,1759582750393,1997.58,0.00019178,2]
[389128180,1759582754239,590.5,0.00019178,2]
[389128181,1759582756633,705.85,0.00019178,2]
[389128182,1759582758324,745.72,0.00019178,2]
[389128183,1759582762567,2915.86,0.00019178,2]
[389128184,1759582762595,1247.66,0.00019178,2]
[389128185,1759582768713,523.95,0.00019178,2]
[389128186,1759582768750,500.0,0.00019178,2]
[389128187,1759582775236,500.0,0.00019178,2]
[389128188,1759582775608,500.0,0.00019178,2]
[389128189,1759582775737,2295.91,0.00019178,2]
[389128190,1759582775942,500.0,0.00019178,2]
[389128191,1759582776191,500.0,0.00019178,2]
[389128193,1759582777927,500.0,0.00019178,2]
[389128194,1759582784804,657.63,0.00019178,2]
[389128195,1759582786940,1029.21746749,0.00019178,2]
[389128196,1759582786966,1705.16253251,0.00019178,2]
[389128197,1759582787738,500.0,0.00019178,2]
[389128198,1759582794204,1530.95,0.00019178,2]
[389128199,1759582799681,500.0,0.00019178,2]
[389128200,1759582799912,500.0,0.00019178,2]
[389128201,1759582800149,500.0,0.00019178,2]
[389128202,1759582800403,511.35,0.00019178,2]
[389128203,1759582801172,500.0,0.00019178,2]
[389128204,1759582805055,300.0,0.000192,2]
[389128205,1759582808415,500.0,0.00019178,2]
[389128206,1759582811515,715.71,0.00019178,2]
[389128207,1759582815612,300.0,0.000192,2]
[389128208,1759582819475,500.0,0.00019178,2]
[389128209,1759582822848,500.0,0.00019178,2]
[389128210,1759582823695,500.0,0.00019178,2]
[389128211,1759582824029,500.0,0.00019178,2]
[389128212,1759582824558,2142.0,0.00019178,2]
[389128213,1759582824586,288.41,0.00019178,2]
[389128214,1759582826575,500.0,0.00019178,2]
[389128215,1759582826825,548.98,0.00019178,2]
[389128216,1759582841987,500.0,0.00019178,2]
[389128218,1759582846501,1259.23,0.00019178,2]
[389128219,1759582854723,578.54,0.00019178,2]
[389128220,1759582856114,932.86,0.00019178,2]
[389128221,1759582857192,666.8,0.00019178,2]
[389128222,1759582860107,500.0,0.00019178,2]
[389128223,1759582862194,500.0,0.00019178,2]
[389128224,1759582865504,155.805851,0.00024647,30]
[389128225,1759582865536,500.0,0.00019178,2]
[389128226,1759582867937,500.0,0.00019178,2]
[389128227,1759582874346,-300.0,0.000192,2]
[389128228,1759582878622,937.67,0.00019178,2]
[389128229,1759582882494,500.32,0.00019178,2]
[389128231,1759582893435,1461.61,0.00019178,2]
[389128232,1759582894234,500.0,0.00019178,2]
[389128233,1759582896557,500.0,0.00019178,2]
[389128235,1759582901712,1324.22,0.00019178,2]
[389128236,1759582904833,500.0,0.00019178,2]
[389128237,1759582924083,500.0,0.00019178,2]
[389128238,1759582925079,300.0,0.000192,2]
[389128239,1759582932392,500.0,0.00019178,2]
[389128240,1759582936172,500.0,0.00019178,2]
[389128241,1759582941786,500.0,0.00019178,2]
[389128242,1759582945152,500.0,0.00019178,2]
[389128243,1759582946235,500.0,0.00019178,2]
[389128244,1759582948335,376.19,0.00019178,2]
[389128245,1759582948359,123.81,0.00019178,2]
[389128246,1759582952134,500.0,0.00019178,2]
[389128247,1759582954759,500.0,0.00019178,2]
[389128248,1759582955777,586.08,0.00019178,2]
[389128249,1759582957208,500.0,0.00019178,2]
[389128250,1759582962722,500.0,0.00019178,2]
[389128251,1759582967866,639.01,0.00019178,2]
[389128252,1759582969648,500.0,0.00019178,2]
[389128253,1759582969692,500.0,0.00019178,2]
[389128254,1759582972035,500.0,0.00019178,2]
[389128255,1759582974614,500.0,0.00019178,2]
[389128256,1759582974671,500.0,0.00019178,2]
[389128257,1759582977559,500.0,0.00019178,2]
[389128258,1759582977729,1728.3,0.00019178,2]
[389128259,1759582984112,500.0,0.00019178,2]
[389128260,1759582984868,500.0,0.00019178,2]
[389128261,1759582993278,500.0,0.00019178,2]
[389128262,1759582997626,500.0,0.00019178,2]
[389128263,1759582999748,500.0,0.00019178,2]
[389128264,1759583000674,500.0,0.00019178,2]
[389128265,1759583003561,46.62,0.00019178,2]
[389128266,1759583003585,1184.95,0.00019178,2]
[389128267,1759583004261,1400.7,0.00019178,2]
[389128268,1759583012976,500.0,0.00019178,2]
[389128269,1759583017061,500.0,0.00019178,2]
[389128270,1759583021889,500.0,0.00019178,2]
[389128271,1759583022898,500.0,0.00019178,2]
[389128272,1759583023782,2602.2,0.00019178,2]
[389128273,1759583047108,2786.6,0.00019178,2]
[389128276,1759583052270,25.56,0.00018492,2]
[389128277,1759583052297,195.498438,0.00018492,2]
[389128278,1759583058483,500.0,0.00019178,2]
[389128279,1759583070466,826.29413717,0.000192,2]
[389128280,1759583078855,254.33886898,0.00019178,2]
[389128281,1759583087212,500.0,0.00019178,2]
[389128282,1759583093774,500.0,0.00019178,2]
[389128283,1759583108233,500.0,0.00019178,2]
[389128287,1759583117799,1285.99,0.00019178,2]
[389128288,1759583118505,1180.26,0.00019178,2]
[389128289,1759583119302,151.0,0.000192,2]
[389128290,1759583120393,151.0,0.000192,2]
[389128291,1759583121447,151.0,0.000192,2]
[389128292,1759583122555,157.0014497,0.000192,2]
[389128305,1759583213313,500.0,0.00019178,2]
[389128306,1759583225012,612.39,0.00019178,2]
[389128307,1759583255962,1342.34,0.00019178,2]
[389128308,1759583280466,251.36,0.00016384,2]
[389128309,1759583297537,500.0,0.00019178,2]
[389128310,1759583349067,441.53710615,0.00019178,2]
[389128311,1759583349098,689.54289385,0.00019178,2]
[389128312,1759583368006,248.508368,0.0001574,2]
[389128313,1759583375449,2535.67927386,0.00025,30]
[389128647,1759583435491,-358.95344586,0.00019351,2]
[389128649,1759583435503,-1078.39748926,0.00019351,2]
[389128860,1759583438016,-35.92732518,0.00019351,2]
[389128862,1759583438026,-490.54221963,0.00019397,2]
[389128865,1759583438038,-596.39072157,0.00019397,2]
[389128870,1759583438080,-113.0670588,0.00019397,2]
[389128872,1759583438090,-719.9328948,0.00019398,2]
[389128877,1759583438123,-4504.4994764,0.00019398,2]
[389128879,1759583438133,-1200.0,0.00019448,2]
[389128881,1759583438142,-182.0,0.00019449,2]
[389128883,1759583438152,-300.0,0.00019449,2]
[389128885,1759583438162,-500.0,0.0001945,2]
[389128887,1759583438171,-500.0,0.0001945,2]
[389128889,1759583438180,-518.44,0.0001945,2]
[389128891,1759583438189,-773.72,0.0001945,2]
[389128893,1759583438199,-500.0,0.0001945,2]
[389128895,1759583438208,-746.32,0.0001945,2]
[389128897,1759583438218,-500.0,0.0001945,2]
[389128899,1759583438229,-500.0,0.0001945,2]
[389128901,1759583438238,-2856.36,0.0001945,2]
[389128903,1759583438248,-500.0,0.0001945,2]
[389128905,1759583438257,-453.45546985,0.0001945,2]
[389128907,1759583438266,-3532.55,0.0001945,2]
[389128909,1759583438275,-500.0,0.0001945,2]
[389128911,1759583438285,-965.92,0.0001945,2]
[389128913,1759583438295,-500.0,0.0001945,2]
[389128915,1759583438304,-500.0,0.0001945,2]
[389128917,1759583438313,-50000.0,0.00019451,2]
[389128919,1759583438323,-500.0,0.00019451,2]
[389128921,1759583438332,-500.0,0.00019451,2]
[389128923,1759583438342,-500.0,0.00019451,2]
[389128925,1759583438351,-500.0,0.00019451,2]
[389128927,1759583438361,-500.0,0.00019451,2]
[389128929,1759583438370,-1101.47,0.00019451,2]
[389128931,1759583438379,-500.0,0.00019451,2]
[389128933,1759583438389,-1126.81,0.00019451,2]
[389128935,1759583438402,-815.93,0.00019451,2]
[389128937,1759583438411,-576.38,0.00019451,2]
[389128939,1759583438420,-500.0,0.00019451,2]
[389128941,1759583438430,-1453.9,0.00019451,2]
[389128943,1759583438439,-500.0,0.00019451,2]
[389128944,1759583438448,-759.78,0.00019451,2]
[389128945,1759583438457,-951.72,0.00019451,2]
[389128946,1759583438467,-481.4305831,0.00019451,2]
[389128947,1759583438477,-500.0,0.00019451,2]
[389128948,1759583438487,-801.25,0.00019451,2]
[389128949,1759583438497,-855.29,0.00019451,2]
[389128950,1759583438506,-500.0,0.00019451,2]
[389128951,1759583438515,-1795.48,0.00019451,2]
[389128952,1759583438525,-340.89296275,0.00019451,2]
[389128953,1759583438534,-500.0,0.00019451,2]
[389128954,1759583438544,-500.0,0.00019451,2]
[389128955,1759583438553,-294.85629654,0.00019451,2]
[389128956,1759583438563,-500.0,0.00019451,2]
[389128957,1759583438571,-500.0,0.00019451,2]
[389128958,1759583438581,-500.0,0.00019451,2]
[389128959,1759583438590,-500.0,0.00019451,2]
[389128960,1759583438600,-500.0,0.00019451,2]
[389128961,1759583438609,-500.0,0.00019451,2]
[389128962,1759583438618,-292.20036445,0.00019451,2]
[389128963,1759583438628,-500.0,0.00019451,2]
[389128964,1759583438638,-500.0,0.00019451,2]
[389128965,1759583438646,-500.0,0.00019451,2]
[389128966,1759583438656,-188.70000567,0.00019451,2]
[389128967,1759583438665,-500.0,0.00019451,2]
[389128968,1759583438675,-500.0,0.00019451,2]
[389128969,1759583438684,-500.0,0.00019451,2]
[389128970,1759583438694,-556.61,0.00019451,2]
[389128971,1759583438703,-516.21,0.00019451,2]
[389128972,1759583438712,-1752.38,0.00019451,2]
[389128973,1759583438722,-756.25,0.00019451,2]
[389128974,1759583438732,-665.53,0.00019451,2]
[389128975,1759583438741,-1624.87,0.00019451,2]
[389128976,1759583438751,-600.67,0.00019451,2]
[389128977,1759583438761,-500.0,0.00019451,2]
[389128978,1759583438770,-847.95,0.00019451,2]
[389128979,1759583438779,-500.0,0.00019451,2]
[389128980,1759583438788,-500.0,0.00019451,2]
[389128981,1759583438798,-500.0,0.00019451,2]
[389128982,1759583438807,-608.29,0.00019451,2]
[389128983,1759583438816,-500.0,0.00019451,2]
[389128984,1759583438827,-744.96,0.00019451,2]
[389128986,1759583438838,-500.0,0.00019452,2]
[389128988,1759583438847,-500.0,0.00019452,2]
[389128990,1759583438857,-586.87,0.00019452,2]
[389128992,1759583438867,-500.0,0.00019452,2]
[389128994,1759583438876,-500.0,0.00019452,2]
[389128996,1759583438886,-500.0,0.00019452,2]
[389128998,1759583438895,-337.29365768,0.00019452,2]
[389129000,1759583438905,-500.0,0.00019452,2]
[389129002,1759583438915,-590.5,0.00019452,2]
[389129004,1759583438924,-523.95,0.00019452,2]
[389129006,1759583438934,-500.0,0.00019452,2]
[389129008,1759583438944,-500.0,0.00019452,2]